[Event "Late-Titled-Tuesday-Blitz-June-18-2024"]
[Site "Chess.com"]
[Date "2024.06.18"]
[Round "2"]
[White "jbking07"]
[Black "noblerone"]
[Result "1-0"]
[WhiteElo "2375"]
[BlackElo "2544"]
[TimeControl "180+1"]
[EndTime "14:17:45 PDT"]
[Termination "jbking07 won by resignation"]

1. Nf3 {[%clk 0:03:00.9]} 1... d5 {[%clk 0:02:58.9]} 2. g3 {[%clk 0:02:59]} 2...
Nf6 {[%clk 0:02:59]} 3. Bg2 {[%clk 0:02:59]} 3... e6 {[%clk 0:02:57.8]} 4. O-O
{[%clk 0:02:59.3]} 4... Be7 {[%clk 0:02:58.1]} 5. d3 {[%clk 0:02:56.4]} 5... O-O
{[%clk 0:02:57.4]} 6. Nbd2 {[%clk 0:02:57.3]} 6... c5 {[%clk 0:02:55.5]} 7. e4
{[%clk 0:02:57.6]} 7... Nc6 {[%clk 0:02:55.7]} 8. Re1 {[%clk 0:02:47.2]} 8... b5
{[%clk 0:02:47.2]} 9. exd5 {[%clk 0:02:42.7]} 9... exd5 {[%clk 0:02:37.5]} 10.
d4 {[%clk 0:02:42.1]} 10... c4 {[%clk 0:02:24.1]} 11. c3 {[%clk 0:02:39.9]}
11... b4 {[%clk 0:01:54.2]} 12. Ne5 {[%clk 0:02:35.5]} 12... Bb7 {[%clk
0:01:11.2]} 13. Ndxc4 {[%clk 0:02:32.5]} 13... bxc3 {[%clk 0:01:10.8]} 14. Nxc6
{[%clk 0:02:30.6]} 14... Bxc6 {[%clk 0:01:09.3]} 15. Ne5 {[%clk 0:02:30.7]}
15... Bb5 {[%clk 0:01:05.4]} 16. bxc3 {[%clk 0:02:30.4]} 16... Rc8 {[%clk
0:01:05.8]} 17. a4 {[%clk 0:02:28.9]} 17... Ba6 {[%clk 0:01:02.4]} 18. Ba3
{[%clk 0:02:00.9]} 18... Bxa3 {[%clk 0:00:52.3]} 19. Rxa3 {[%clk 0:02:01.8]}
19... Qd6 {[%clk 0:00:48.3]} 20. Rb3 {[%clk 0:01:52.3]} 20... Rfe8 {[%clk
0:00:38.3]} 21. Qd2 {[%clk 0:01:41]} 21... h6 {[%clk 0:00:36.9]} 22. h3 {[%clk
0:01:23]} 22... Rb8 {[%clk 0:00:20.6]} 23. Rxb8 {[%clk 0:01:05.8]} 23... Rxb8
{[%clk 0:00:21.5]} 24. Qf4 {[%clk 0:00:54.1]} 24... Rd8 {[%clk 0:00:18.2]} 25.
g4 {[%clk 0:00:53.6]} 25... Nh7 {[%clk 0:00:16.5]} 26. Qxf7+ {[%clk 0:00:52.6]}
26... Kh8 {[%clk 0:00:16.3]} 27. Ng6+ {[%clk 0:00:53.2]} 27... Qxg6 {[%clk
0:00:15.4]} 28. Qxg6 {[%clk 0:00:54.1]} 28... Ng5 {[%clk 0:00:16]} 29. Re8+
{[%clk 0:00:52.1]} 29... Rxe8 {[%clk 0:00:15.9]} 30. Qxe8+ {[%clk 0:00:53]} 1-0

[Event "Late-Titled-Tuesday-Blitz-June-18-2024"]
[Site "Chess.com"]
[Date "2024.06.18"]
[Round "2"]
[White "familijatop71"]
[Black "GMG"]
[Result "1/2-1/2"]
[WhiteElo "2302"]
[BlackElo "2665"]
[TimeControl "180+1"]
[EndTime "14:17:46 PDT"]
[Termination "Game drawn by agreement"]

1. e4 {[%clk 0:03:00.9]} 1... c6 {[%clk 0:03:00.1]} 2. d4 {[%clk 0:02:59.7]}
2... d5 {[%clk 0:03:00.3]} 3. e5 {[%clk 0:02:59.4]} 3... Bf5 {[%clk 0:03:00.1]}
4. Nf3 {[%clk 0:02:59.8]} 4... e6 {[%clk 0:03:00.5]} 5. Be2 {[%clk 0:02:59.6]}
5... Ne7 {[%clk 0:03:00.7]} 6. O-O {[%clk 0:02:59.1]} 6... Ng6 {[%clk
0:03:00.7]} 7. c3 {[%clk 0:02:53.2]} 7... Nd7 {[%clk 0:02:57.2]} 8. Be3 {[%clk
0:02:52.7]} 8... f6 {[%clk 0:02:56.2]} 9. exf6 {[%clk 0:02:42.2]} 9... Qxf6
{[%clk 0:02:57.1]} 10. Nbd2 {[%clk 0:02:39]} 10... Bd6 {[%clk 0:02:56.5]} 11.
Bg5 {[%clk 0:02:18.2]} 11... Qf7 {[%clk 0:02:51]} 12. Nh4 {[%clk 0:02:12.2]}
12... Nxh4 {[%clk 0:02:43.4]} 13. Bxh4 {[%clk 0:02:09.4]} 13... e5 {[%clk
0:02:35.1]} 14. dxe5 {[%clk 0:02:04.3]} 14... Nxe5 {[%clk 0:02:36]} 15. Nf3
{[%clk 0:01:57.7]} 15... O-O {[%clk 0:02:27.3]} 16. Bg3 {[%clk 0:01:41.2]} 16...
Nxf3+ {[%clk 0:02:21.7]} 17. Bxf3 {[%clk 0:01:38.5]} 17... Bxg3 {[%clk
0:02:13.9]} 18. hxg3 {[%clk 0:01:29.5]} 18... Rad8 {[%clk 0:02:05]} 19. Qd4
{[%clk 0:01:25.7]} 19... b6 {[%clk 0:02:03.2]} 20. Rfe1 {[%clk 0:01:25.8]} 20...
c5 {[%clk 0:02:00.8]} 21. Qf4 {[%clk 0:01:20.5]} 21... d4 {[%clk 0:01:49]} 22.
cxd4 {[%clk 0:01:11.5]} 22... cxd4 {[%clk 0:01:49.9]} 23. Re5 {[%clk 0:01:07.4]}
23... Bc2 {[%clk 0:01:42]} 24. Qxf7+ {[%clk 0:01:04.5]} 24... Kxf7 {[%clk
0:01:42.9]} 25. Rae1 {[%clk 0:00:45.9]} 25... Rfe8 {[%clk 0:01:24.8]} 26. Rxe8
{[%clk 0:00:32.3]} 26... Rxe8 {[%clk 0:01:25.7]} 27. Rxe8 {[%clk 0:00:32.6]}
27... Kxe8 {[%clk 0:01:26.6]} 28. Kf1 {[%clk 0:00:33.1]} 28... Ke7 {[%clk
0:01:26.1]} 29. Ke1 {[%clk 0:00:33.6]} 29... Bb1 {[%clk 0:01:23.6]} 30. a3
{[%clk 0:00:32.3]} 30... Kd6 {[%clk 0:01:23.1]} 31. Kd2 {[%clk 0:00:30.8]} 31...
Ke5 {[%clk 0:01:22.9]} 32. Be2 {[%clk 0:00:28.4]} 32... h6 {[%clk 0:00:51.3]}
1/2-1/2

[Event "Late-Titled-Tuesday-Blitz-June-18-2024"]
[Site "Chess.com"]
[Date "2024.06.18"]
[Round "2"]
[White "matagordo"]
[Black "djano"]
[Result "1-0"]
[WhiteElo "2383"]
[BlackElo "2600"]
[TimeControl "180+1"]
[EndTime "14:17:48 PDT"]
[Termination "matagordo won by resignation"]

1. d4 {[%clk 0:03:00.9]} 1... Nf6 {[%clk 0:02:52]} 2. Bf4 {[%clk 0:03:01.1]}
2... c5 {[%clk 0:02:49.7]} 3. d5 {[%clk 0:03:01]} 3... d6 {[%clk 0:02:49]} 4.
Nc3 {[%clk 0:03:01]} 4... g6 {[%clk 0:02:48.1]} 5. e4 {[%clk 0:03:01]} 5... Bg7
{[%clk 0:02:48]} 6. Bb5+ {[%clk 0:03:01.6]} 6... Nbd7 {[%clk 0:02:47.4]} 7. a4
{[%clk 0:03:02.5]} 7... O-O {[%clk 0:02:47.3]} 8. Nf3 {[%clk 0:03:02.1]} 8... a6
{[%clk 0:02:43.6]} 9. Be2 {[%clk 0:03:02.1]} 9... Nh5 {[%clk 0:02:42]} 10. Be3
{[%clk 0:02:59.3]} 10... Qb6 {[%clk 0:02:39.4]} 11. Ra3 {[%clk 0:02:55.8]} 11...
Ne5 {[%clk 0:02:21.6]} 12. Nxe5 {[%clk 0:02:53.6]} 12... Bxe5 {[%clk 0:02:22.5]}
13. Bxh5 {[%clk 0:02:53.7]} 13... gxh5 {[%clk 0:02:22.7]} 14. Rb3 {[%clk
0:02:44.4]} 14... Qa5 {[%clk 0:02:21.8]} 15. Qxh5 {[%clk 0:02:41.5]} 15... f5
{[%clk 0:02:14.2]} 16. Bh6 {[%clk 0:02:27.7]} 16... Rf7 {[%clk 0:02:08.9]} 17.
O-O {[%clk 0:02:05.8]} 17... f4 {[%clk 0:02:05]} 18. Ne2 {[%clk 0:01:56.7]}
18... Qd2 {[%clk 0:01:53.7]} 19. Rf3 {[%clk 0:01:27.3]} 19... Bd7 {[%clk
0:01:37.7]} 20. Nxf4 {[%clk 0:01:26.9]} 20... Qxc2 {[%clk 0:00:29.3]} 21. Rg3+
{[%clk 0:01:19.7]} 21... Bg7 {[%clk 0:00:26.9]} 22. Ne6 {[%clk 0:01:12]} 22...
Qxb2 {[%clk 0:00:16.1]} 23. Bxg7 {[%clk 0:01:07.4]} 23... Rxg7 {[%clk
0:00:13.6]} 24. Rxg7+ {[%clk 0:01:03.9]} 24... Qxg7 {[%clk 0:00:14.1]} 25. Nxg7
{[%clk 0:01:04.6]} 25... Kxg7 {[%clk 0:00:15]} 26. Rb1 {[%clk 0:01:00]} 26... b5
{[%clk 0:00:14]} 27. Rb3 {[%clk 0:00:59.7]} 27... bxa4 {[%clk 0:00:12.9]} 28.
Rg3+ {[%clk 0:00:59.8]} 28... Kh8 {[%clk 0:00:13.4]} 29. Qf7 {[%clk 0:00:54.1]}
1-0

[Event "Late-Titled-Tuesday-Blitz-June-18-2024"]
[Site "Chess.com"]
[Date "2024.06.18"]
[Round "2"]
[White "Mikayel99"]
[Black "Hikaru"]
[Result "1/2-1/2"]
[WhiteElo "2665"]
[BlackElo "3293"]
[TimeControl "180+1"]
[EndTime "14:17:51 PDT"]
[Termination "Game drawn by repetition"]

1. e4 {[%clk 0:03:00.9]} 1... c6 {[%clk 0:02:57.8]} 2. d4 {[%clk 0:03:00.7]}
2... d5 {[%clk 0:02:54.8]} 3. exd5 {[%clk 0:03:00.1]} 3... cxd5 {[%clk
0:02:53.4]} 4. Bd3 {[%clk 0:03:00.4]} 4... g6 {[%clk 0:02:53.6]} 5. h3 {[%clk
0:02:58.2]} 5... Bf5 {[%clk 0:02:53.5]} 6. Be2 {[%clk 0:02:56.7]} 6... Nc6
{[%clk 0:02:52.3]} 7. Nf3 {[%clk 0:02:57]} 7... Nb4 {[%clk 0:02:48]} 8. Na3
{[%clk 0:02:54.4]} 8... a6 {[%clk 0:02:47.1]} 9. O-O {[%clk 0:02:48.1]} 9... Nf6
{[%clk 0:02:45.4]} 10. Ne5 {[%clk 0:02:40.8]} 10... Bg7 {[%clk 0:02:41.1]} 11.
c3 {[%clk 0:02:39.1]} 11... Nc6 {[%clk 0:02:41.3]} 12. Nxc6 {[%clk 0:02:39.3]}
12... bxc6 {[%clk 0:02:42.2]} 13. Qa4 {[%clk 0:02:39.3]} 13... Bd7 {[%clk
0:02:39.4]} 14. Qd1 {[%clk 0:02:32.4]} 14... Qc7 {[%clk 0:02:37.9]} 15. Be3
{[%clk 0:02:30]} 15... O-O {[%clk 0:02:37.6]} 16. Qd2 {[%clk 0:02:30.4]} 16...
Ne4 {[%clk 0:02:37.6]} 17. Qc1 {[%clk 0:02:26.7]} 17... e5 {[%clk 0:02:36.9]}
18. Nc2 {[%clk 0:02:14.8]} 18... Rfe8 {[%clk 0:02:34.2]} 19. Bh6 {[%clk
0:02:08.2]} 19... Bh8 {[%clk 0:02:32.1]} 20. Bf3 {[%clk 0:02:00.6]} 20... Nd6
{[%clk 0:02:30.9]} 21. dxe5 {[%clk 0:01:59.3]} 21... Bxe5 {[%clk 0:02:31.5]} 22.
Ne3 {[%clk 0:01:55.5]} 22... Nf5 {[%clk 0:02:29.4]} 23. Nxf5 {[%clk 0:01:51.8]}
23... Bxf5 {[%clk 0:02:30.3]} 24. Qd2 {[%clk 0:01:48.2]} 24... Re6 {[%clk
0:02:29.5]} 25. Rfe1 {[%clk 0:01:41.1]} 25... Rae8 {[%clk 0:02:28.7]} 26. Re2
{[%clk 0:01:37.7]} 26... Be4 {[%clk 0:02:24.9]} 27. Bxe4 {[%clk 0:01:33.8]}
27... dxe4 {[%clk 0:02:25.8]} 28. Qc2 {[%clk 0:01:18.3]} 28... f5 {[%clk
0:02:24.8]} 29. Rd1 {[%clk 0:01:18.1]} 29... Qe7 {[%clk 0:02:23.9]} 30. Qc1
{[%clk 0:01:12.3]} 30... Bf6 {[%clk 0:02:19.8]} 31. Red2 {[%clk 0:01:08.1]}
31... Qf7 {[%clk 0:02:14]} 32. Rd7 {[%clk 0:01:07]} 32... R6e7 {[%clk
0:02:14.7]} 33. Rxe7 {[%clk 0:01:03]} 33... Bxe7 {[%clk 0:02:15.6]} 34. Rd7
{[%clk 0:00:51.6]} 34... Qxa2 {[%clk 0:02:13.8]} 35. Qd2 {[%clk 0:00:46.1]}
35... Qe6 {[%clk 0:02:13.2]} 36. Qd4 {[%clk 0:00:43.2]} 36... Bf6 {[%clk
0:01:38.1]} 37. Rg7+ {[%clk 0:00:33.4]} 37... Kh8 {[%clk 0:01:38.2]} 38. Qa7
{[%clk 0:00:33.6]} 38... Be7 {[%clk 0:01:31.9]} 39. Qd4 {[%clk 0:00:25.8]} 39...
Bf6 {[%clk 0:01:32.4]} 40. Qa7 {[%clk 0:00:25.8]} 40... Be7 {[%clk 0:01:04.9]}
41. Qd4 {[%clk 0:00:25.9]} 41... Bf6 {[%clk 0:01:00.2]} 1/2-1/2

[Event "Late-Titled-Tuesday-Blitz-June-18-2024"]
[Site "Chess.com"]
[Date "2024.06.18"]
[Round "2"]
[White "Artem_Koval"]
[Black "Flawless_Fighter"]
[Result "0-1"]
[WhiteElo "2558"]
[BlackElo "2813"]
[TimeControl "180+1"]
[EndTime "14:17:53 PDT"]
[Termination "Flawless_Fighter won by resignation"]

1. d4 {[%clk 0:03:00.9]} 1... Nf6 {[%clk 0:03:00.1]} 2. Nf3 {[%clk 0:03:00.7]}
2... d5 {[%clk 0:03:00.4]} 3. Bf4 {[%clk 0:03:00.6]} 3... c5 {[%clk 0:02:59.3]}
4. e3 {[%clk 0:03:00.7]} 4... Nc6 {[%clk 0:02:59.9]} 5. c3 {[%clk 0:03:00.6]}
5... Nh5 {[%clk 0:02:59.5]} 6. dxc5 {[%clk 0:02:44.6]} 6... Nxf4 {[%clk
0:02:58.9]} 7. exf4 {[%clk 0:02:45.5]} 7... g6 {[%clk 0:02:50.4]} 8. Be2 {[%clk
0:02:29.4]} 8... Bg7 {[%clk 0:02:49.4]} 9. O-O {[%clk 0:02:29.9]} 9... O-O
{[%clk 0:02:49.1]} 10. Nbd2 {[%clk 0:02:27.8]} 10... a5 {[%clk 0:02:41.4]} 11.
Bb5 {[%clk 0:02:24.2]} 11... Qc7 {[%clk 0:02:39.9]} 12. Re1 {[%clk 0:02:14]}
12... Qxf4 {[%clk 0:02:30.3]} 13. Bxc6 {[%clk 0:02:12.1]} 13... bxc6 {[%clk
0:02:31.2]} 14. Rxe7 {[%clk 0:02:12.3]} 14... Be6 {[%clk 0:02:28.5]} 15. Nb3
{[%clk 0:02:01.7]} 15... Bf6 {[%clk 0:02:12.8]} 16. Rb7 {[%clk 0:02:01.4]} 16...
Rfb8 {[%clk 0:02:04.2]} 17. Rxb8+ {[%clk 0:01:37.6]} 17... Rxb8 {[%clk
0:02:05.1]} 18. Nxa5 {[%clk 0:01:22.9]} 18... Rxb2 {[%clk 0:02:02]} 19. Nxc6
{[%clk 0:01:23]} 19... Bxc3 {[%clk 0:01:57.5]} 20. Qc1 {[%clk 0:00:44.2]} 20...
Qc4 {[%clk 0:01:47.8]} 21. Nce5 {[%clk 0:00:42.7]} 21... Qe2 {[%clk 0:01:23.9]}
22. Qe3 {[%clk 0:00:40.4]} 22... d4 {[%clk 0:01:00.4]} 23. Nxd4 {[%clk 0:00:27]}
23... Bxd4 {[%clk 0:00:54]} 24. Qxd4 {[%clk 0:00:27.9]} 24... Rxa2 {[%clk
0:00:51]} 25. Rb1 {[%clk 0:00:26.3]} 25... Rd2 {[%clk 0:00:46.8]} 26. Qe3 {[%clk
0:00:19.6]} 26... Rd1+ {[%clk 0:00:45.8]} 0-1

[Event "Late-Titled-Tuesday-Blitz-June-18-2024"]
[Site "Chess.com"]
[Date "2024.06.18"]
[Round "2"]
[White "subham777"]
[Black "ChessLover0108"]
[Result "0-1"]
[WhiteElo "2609"]
[BlackElo "2935"]
[TimeControl "180+1"]
[EndTime "14:17:56 PDT"]
[Termination "ChessLover0108 won by resignation"]

1. e4 {[%clk 0:03:00.9]} 1... c5 {[%clk 0:03:00]} 2. Nf3 {[%clk 0:03:00.5]} 2...
d6 {[%clk 0:03:00.7]} 3. d4 {[%clk 0:03:00.3]} 3... cxd4 {[%clk 0:03:01.6]} 4.
Qxd4 {[%clk 0:03:00.6]} 4... a6 {[%clk 0:03:01.3]} 5. Nc3 {[%clk 0:02:59.2]}
5... Nc6 {[%clk 0:03:00.4]} 6. Qd2 {[%clk 0:02:59.8]} 6... Bg4 {[%clk 0:03:01]}
7. b3 {[%clk 0:02:59.4]} 7... g6 {[%clk 0:02:56.2]} 8. Bb2 {[%clk 0:02:57.4]}
8... Bh6 {[%clk 0:02:43.9]} 9. Qd1 {[%clk 0:02:44.8]} 9... Bg7 {[%clk
0:02:33.3]} 10. Qd2 {[%clk 0:02:40.1]} 10... Nf6 {[%clk 0:02:25.9]} 11. O-O-O
{[%clk 0:02:37.9]} 11... O-O {[%clk 0:02:26.6]} 12. h3 {[%clk 0:02:35.5]} 12...
Bxf3 {[%clk 0:02:24.4]} 13. gxf3 {[%clk 0:02:36.4]} 13... Rc8 {[%clk 0:02:22.3]}
14. Kb1 {[%clk 0:02:34.7]} 14... Qa5 {[%clk 0:02:04.5]} 15. a3 {[%clk 0:02:20]}
15... b5 {[%clk 0:01:56.4]} 16. h4 {[%clk 0:02:11]} 16... b4 {[%clk 0:01:55]}
17. axb4 {[%clk 0:02:04.9]} 17... Nxb4 {[%clk 0:01:54.7]} 18. Bc4 {[%clk
0:01:50.6]} 18... Rxc4 {[%clk 0:01:53]} 19. bxc4 {[%clk 0:01:48.9]} 19... Rb8
{[%clk 0:01:53.7]} 20. Kc1 {[%clk 0:01:30.5]} 20... Nd7 {[%clk 0:01:27.3]} 21.
Qg5 {[%clk 0:00:55]} 21... Nc5 {[%clk 0:01:04.5]} 22. Rd5 {[%clk 0:00:29.3]}
22... Nxd5 {[%clk 0:00:59]} 23. Nxd5 {[%clk 0:00:18.4]} 23... Rxb2 {[%clk
0:00:46.6]} 24. Qxe7 {[%clk 0:00:09.7]} 24... Nb3+ {[%clk 0:00:44.3]} 0-1

[Event "Late-Titled-Tuesday-Blitz-June-18-2024"]
[Site "Chess.com"]
[Date "2024.06.18"]
[Round "2"]
[White "bazar-wokzal"]
[Black "ckgchess"]
[Result "0-1"]
[WhiteElo "2587"]
[BlackElo "2879"]
[TimeControl "180+1"]
[EndTime "14:18:01 PDT"]
[Termination "ckgchess won by resignation"]

1. e4 {[%clk 0:03:00.9]} 1... c5 {[%clk 0:03:00.5]} 2. c3 {[%clk 0:02:55.9]}
2... d5 {[%clk 0:02:55.6]} 3. exd5 {[%clk 0:02:55.9]} 3... Qxd5 {[%clk
0:02:53.1]} 4. d4 {[%clk 0:02:56.7]} 4... Nc6 {[%clk 0:02:50.8]} 5. Nf3 {[%clk
0:02:56.5]} 5... cxd4 {[%clk 0:02:50.3]} 6. cxd4 {[%clk 0:02:56.2]} 6... e5
{[%clk 0:02:50.8]} 7. Nc3 {[%clk 0:02:56.5]} 7... Bb4 {[%clk 0:02:50.7]} 8. Be2
{[%clk 0:02:57]} 8... Nf6 {[%clk 0:02:28.5]} 9. dxe5 {[%clk 0:02:44.7]} 9...
Qxd1+ {[%clk 0:02:19.6]} 10. Bxd1 {[%clk 0:02:44.1]} 10... Ne4 {[%clk
0:02:15.5]} 11. Bd2 {[%clk 0:02:33.8]} 11... Nxd2 {[%clk 0:02:14.5]} 12. Kxd2
{[%clk 0:02:34.2]} 12... O-O {[%clk 0:02:14.6]} 13. Ba4 {[%clk 0:02:18.7]} 13...
Bd7 {[%clk 0:01:50.2]} 14. Bxc6 {[%clk 0:02:12.7]} 14... Bxc6 {[%clk 0:01:50.4]}
15. Rhe1 {[%clk 0:02:09.6]} 15... Rad8+ {[%clk 0:01:41.8]} 16. Kc2 {[%clk
0:02:09.4]} 16... Bc5 {[%clk 0:01:36.5]} 17. Re2 {[%clk 0:01:58.1]} 17... Rfe8
{[%clk 0:01:19.5]} 18. Rd1 {[%clk 0:01:55.1]} 18... Rc8 {[%clk 0:01:20.2]} 19.
Kb1 {[%clk 0:01:49.2]} 19... b5 {[%clk 0:01:18.8]} 20. Nd5 {[%clk 0:01:36.2]}
20... Red8 {[%clk 0:01:09.3]} 21. Nc3 {[%clk 0:01:25.7]} 21... Re8 {[%clk
0:01:01.5]} 22. Nd5 {[%clk 0:01:18.9]} 22... Red8 {[%clk 0:01:01.4]} 23. Nc3
{[%clk 0:01:10.6]} 23... b4 {[%clk 0:01:01.8]} 24. Rxd8+ {[%clk 0:01:05.6]}
24... Rxd8 {[%clk 0:01:02.7]} 25. Ne4 {[%clk 0:01:04]} 25... Bb6 {[%clk
0:00:44.9]} 26. Nd6 {[%clk 0:00:58.2]} 26... f6 {[%clk 0:00:43]} 27. Nc4 {[%clk
0:00:54.5]} 27... Bb5 {[%clk 0:00:34.9]} 28. b3 {[%clk 0:00:51.9]} 28... Rd1+
{[%clk 0:00:29.1]} 29. Kc2 {[%clk 0:00:46.3]} 29... Rf1 {[%clk 0:00:28.7]} 30.
exf6 {[%clk 0:00:40.6]} 30... gxf6 {[%clk 0:00:29.6]} 31. Re8+ {[%clk
0:00:38.8]} 31... Bxe8 {[%clk 0:00:29.1]} 0-1

[Event "Late-Titled-Tuesday-Blitz-June-18-2024"]
[Site "Chess.com"]
[Date "2024.06.18"]
[Round "2"]
[White "guillembaches"]
[Black "teresin05"]
[Result "1-0"]
[WhiteElo "2511"]
[BlackElo "2287"]
[TimeControl "180+1"]
[EndTime "14:18:03 PDT"]
[Termination "guillembaches won on time"]

1. d4 {[%clk 0:03:00.9]} 1... d5 {[%clk 0:02:52.9]} 2. Nf3 {[%clk 0:03:00]} 2...
Nf6 {[%clk 0:02:52.8]} 3. Bg5 {[%clk 0:02:59.9]} 3... Ne4 {[%clk 0:02:52.1]} 4.
Bf4 {[%clk 0:02:59.9]} 4... Bf5 {[%clk 0:02:50.7]} 5. e3 {[%clk 0:02:59.1]} 5...
c5 {[%clk 0:02:50.4]} 6. Nbd2 {[%clk 0:02:57.8]} 6... Nc6 {[%clk 0:02:48.3]} 7.
c3 {[%clk 0:02:36.4]} 7... e6 {[%clk 0:02:42.4]} 8. Nxe4 {[%clk 0:02:34.7]} 8...
Bxe4 {[%clk 0:02:43.3]} 9. Bd3 {[%clk 0:02:32.6]} 9... Bxd3 {[%clk 0:02:35.7]}
10. Qxd3 {[%clk 0:02:32.1]} 10... c4 {[%clk 0:02:31.3]} 11. Qc2 {[%clk
0:02:30.9]} 11... Be7 {[%clk 0:02:31.8]} 12. e4 {[%clk 0:02:28.3]} 12... O-O
{[%clk 0:02:30.5]} 13. O-O {[%clk 0:02:28.3]} 13... b5 {[%clk 0:02:28.4]} 14. a3
{[%clk 0:02:23.7]} 14... a5 {[%clk 0:02:11.4]} 15. Rfe1 {[%clk 0:02:23.7]} 15...
b4 {[%clk 0:02:09]} 16. axb4 {[%clk 0:02:15.1]} 16... axb4 {[%clk 0:02:07.8]}
17. Rxa8 {[%clk 0:02:14.6]} 17... Qxa8 {[%clk 0:01:57.7]} 18. exd5 {[%clk
0:02:13.8]} 18... exd5 {[%clk 0:01:51.9]} 19. Qf5 {[%clk 0:02:13.4]} 19... Qd8
{[%clk 0:01:42]} 20. Ne5 {[%clk 0:01:59.8]} 20... Nxe5 {[%clk 0:01:37.3]} 21.
Rxe5 {[%clk 0:01:59.2]} 21... Bf6 {[%clk 0:01:28.2]} 22. Rxd5 {[%clk 0:01:54.7]}
22... Qa8 {[%clk 0:01:18.7]} 23. Ra5 {[%clk 0:01:46.5]} 23... Qe8 {[%clk
0:00:53.8]} 24. Be5 {[%clk 0:01:36.9]} 24... Bxe5 {[%clk 0:00:44.1]} 25. Qxe5
{[%clk 0:01:28.9]} 25... bxc3 {[%clk 0:00:30.9]} 26. bxc3 {[%clk 0:01:25.9]}
26... Qc6 {[%clk 0:00:13.5]} 27. Qd5 {[%clk 0:01:10.2]} 27... Qh6 {[%clk
0:00:06.2]} 28. Ra1 {[%clk 0:01:01.4]} 28... Rc8 {[%clk 0:00:02.9]} 29. Qxc4
{[%clk 0:00:52.6]} 1-0

[Event "Late-Titled-Tuesday-Blitz-June-18-2024"]
[Site "Chess.com"]
[Date "2024.06.18"]
[Round "2"]
[White "Boudicca64"]
[Black "i_like_explosions"]
[Result "0-1"]
[WhiteElo "1879"]
[BlackElo "2421"]
[TimeControl "180+1"]
[EndTime "14:18:05 PDT"]
[Termination "i_like_explosions won by resignation"]

1. e4 {[%clk 0:03:00.9]} 1... c5 {[%clk 0:02:59.3]} 2. g3 {[%clk 0:02:59.3]}
2... Nc6 {[%clk 0:02:59.5]} 3. Bg2 {[%clk 0:02:58.7]} 3... g6 {[%clk 0:03:00.1]}
4. c3 {[%clk 0:02:57.6]} 4... Bg7 {[%clk 0:03:00.7]} 5. Ne2 {[%clk 0:02:57.2]}
5... e5 {[%clk 0:02:58.3]} 6. O-O {[%clk 0:02:55.9]} 6... Nge7 {[%clk
0:02:58.3]} 7. d3 {[%clk 0:02:55.8]} 7... O-O {[%clk 0:02:58.1]} 8. Be3 {[%clk
0:02:55.3]} 8... d6 {[%clk 0:02:58.3]} 9. d4 {[%clk 0:02:54.9]} 9... cxd4 {[%clk
0:02:57.7]} 10. cxd4 {[%clk 0:02:54.6]} 10... Bd7 {[%clk 0:02:53.7]} 11. Nbc3
{[%clk 0:02:52.6]} 11... a6 {[%clk 0:02:51.6]} 12. f4 {[%clk 0:02:40.1]} 12...
exd4 {[%clk 0:02:39.7]} 13. Nxd4 {[%clk 0:02:37.7]} 13... Qb6 {[%clk 0:02:33.3]}
14. Na4 {[%clk 0:01:54.7]} 14... Bxd4 {[%clk 0:02:12.7]} 15. Nxb6 {[%clk
0:01:49.3]} 15... Bxe3+ {[%clk 0:02:12.8]} 16. Kh1 {[%clk 0:01:48.7]} 16... Bxb6
{[%clk 0:02:13.7]} 17. Qxd6 {[%clk 0:01:27.3]} 17... Be6 {[%clk 0:02:13.2]} 18.
Qd2 {[%clk 0:01:15.7]} 18... Rfd8 {[%clk 0:02:11.4]} 19. Qe1 {[%clk 0:01:02.3]}
19... Ba5 {[%clk 0:02:06.8]} 20. Qf2 {[%clk 0:00:58]} 20... Rd2 {[%clk
0:02:06.6]} 21. Qe3 {[%clk 0:00:55.5]} 21... Rad8 {[%clk 0:01:57.5]} 22. f5
{[%clk 0:00:51.9]} 22... gxf5 {[%clk 0:01:35.5]} 23. Qg5+ {[%clk 0:00:48.4]}
23... Kf8 {[%clk 0:01:21.1]} 24. exf5 {[%clk 0:00:45.2]} 24... Bd5 {[%clk
0:01:04.4]} 25. Bxd5 {[%clk 0:00:29.3]} 25... R8xd5 {[%clk 0:01:04.3]} 26. Qh6+
{[%clk 0:00:28.6]} 26... Ke8 {[%clk 0:01:01.8]} 27. f6 {[%clk 0:00:27.8]} 27...
Ng6 {[%clk 0:01:00.2]} 28. Rfe1+ {[%clk 0:00:24.9]} 28... Nce5 {[%clk
0:00:53.3]} 29. Rad1 {[%clk 0:00:19.4]} 29... Rxd1 {[%clk 0:00:52.6]} 30. Rxd1
{[%clk 0:00:10.5]} 30... Rxd1+ {[%clk 0:00:53.5]} 31. Kg2 {[%clk 0:00:10.3]}
31... Rd2+ {[%clk 0:00:53.9]} 32. Kh3 {[%clk 0:00:09.5]} 32... Rxh2+ {[%clk
0:00:51.9]} 0-1